bitfinex-derivatives/quotes_ETHF0:USTF0_20250330
["timestamp","ask_amount","ask_price","bid_price","bid_amount"]
[1743350382721,0.00826264,1812.9,1812.8,12.10299383]
[1743350384526,1.3994,1813.2,1813.1,1.10339]
[1743350384731,1.3994,1813.2,1813.1,4.31119]
[1743350385930,1.3994,1813.2,1813.1,5.71729]
[1743350387728,1.3994,1813.2,1813.1,6.42619]
[1743350392230,21.46583814,1813.5,1813.4,1.1032]
[1743350392528,21.46583814,1813.5,1813.4,4.311]
[1743350393228,21.46583814,1813.5,1813.4,5.0271]
[1743350393429,21.46583814,1813.5,1813.4,6.4971]
[1743350393624,2.26026264,1813.6,1813.5,1.10314]
[1743350393933,2.26026264,1813.6,1813.5,2.60364]
[1743350394633,1.50926264,1813.6,1813.5,2.60364]
[1743350395035,2.26276264,1813.6,1813.5,2.60364]
[1743350396127,2.26276264,1813.6,1813.5,1.10314]
[1743350397330,2.26276264,1813.6,1813.4,3.2078]
[1743350397530,1.3935,1813.5,1813.4,4.311]
[1743350401040,1.3935,1813.5,1813.4,1.1032]
[1743350401633,5.0255,1813.5,1813.4,1.1032]
[1743350402437,6.12864,1813.5,1813.3,1.10322]
[1743350402633,1.4512,1813.4,1813.3,1.10322]
[1743350405142,2.5544,1813.4,1813.3,1.10322]
[1743350405332,1.4512,1813.4,1813.3,1.10322]
[1743350405739,3.30854,1813.4,1813.0,3.9388]
[1743350405937,0.7076,1813.3,1813.2,1.10333]
[1743350406244,2.1606,1813.3,1813.2,1.10333]
[1743350406842,2.1606,1813.3,1813.1,1.10334]
[1743350407042,1.453,1813.2,1813.1,1.10334]
[1743350407230,1.453,1813.2,1813.0,3.2078]
[1743350407431,1.85149,1813.1,1813.0,3.2078]
[1743350407642,0.7481,1813.1,1813.0,4.31125]
[1743350407842,3.30449,1813.1,1813.0,3.2078]
[1743350408041,3.30452,1813.1,1812.9,1.10349]
[1743350408240,3.24536,1813.0,1812.8,4.31132]
[1743350408439,6.18851,1812.9,1812.8,3.2078]
[1743350408646,5.085,1812.9,1812.6,0.00826264]
[1743350408937,1.453,1812.8,1812.7,4.31139]
[1743350409140,1.453,1812.8,1812.7,5.03339]
[1743350410841,1.453,1812.8,1812.7,5.77179]
[1743350411147,0.7481,1813.1,1812.7,4.6682]
[1743350411347,0.7481,1813.1,1813.0,1.10345]
[1743350411738,5.8141,1813.2,1813.0,2.56383]
[1743350411944,2.1217,1813.1,1813.0,2.56383]
[1743350412339,0.753,1813.2,1813.1,1.10339]
[1743350412649,5.0065,1813.3,1813.2,1.10333]
[1743350412849,5.7106,1813.3,1813.2,1.10333]
[1743350414043,50.958,1813.4,1813.3,1.10327]
[1743350414243,3.632,1813.5,1813.4,1.1032]
[1743350414448,5.0065,1813.5,1813.4,1.1032]
[1743350414748,1.3745,1813.5,1813.4,1.1032]
[1743350415344,1.3745,1813.5,1813.4,2.6221]
[1743350417752,1.3745,1813.5,1813.4,1.1032]
[1743350418853,1.3745,1813.5,1813.4,3.2582]
[1743350419753,3.63926264,1813.6,1813.5,1.10314]
[1743350419954,5.01666264,1813.6,1813.5,2.55274]
[1743350420250,5.01666264,1813.6,1813.5,1.4496]
[1743350420647,6.11974264,1813.6,1813.5,1.4496]
[1743350420847,5.01666264,1813.6,1813.2,1.10328]
[1743350421051,1.10326,1813.4,1813.3,1.10327]
[1743350421252,1.10326,1813.4,1813.2,1.444]
[1743350421450,6.84706264,1813.6,1813.2,2.54733]
[1743350421451,2.9651,1813.3,1813.2,2.54733]
[1743350421754,2.2241,1813.3,1813.2,2.54733]
[1743350425350,3.32737,1813.3,1813.2,1.444]
[1743350425655,6.95837,1813.3,1813.2,1.444]
[1743350425954,5.8551,1813.3,1813.2,2.54733]
[1743350427555,6.95837,1813.3,1813.2,2.54733]
[1743350427753,5.8551,1813.3,1813.2,2.54733]
[1743350429749,0.741,1813.5,1813.4,1.1032]
[1743350429951,6.98034,1813.5,1813.3,1.4023]
[1743350430156,6.98034,1813.5,1813.4,1.1032]
[1743350430352,1.5052,1813.4,1813.3,2.50555]
[1743350430553,1.5052,1813.4,1813.3,1.10325]
[1743350430750,1.5052,1813.4,1813.2,1.439]
[1743350430751,3.35662,1813.4,1813.2,1.439]
[1743350431053,3.35662,1813.4,1813.2,2.54229]
[1743350431357,1.5191,1813.3,1813.2,1.10329]
[1743350432055,1.5191,1813.3,1813.2,2.54229]
[1743350433159,23.04854153,1813.3,1813.2,2.54229]
[1743350434858,21.52944153,1813.3,1813.2,2.54229]
[1743350435658,26.62990417,1813.6,1813.5,1.10314]
[1743350436856,26.62990417,1813.6,1813.5,2.48274]
[1743350437756,27.73298417,1813.6,1813.5,1.3796]
[1743350437963,26.62990417,1813.6,1813.3,4.31103]
[1743350438254,1.1033,1813.3,1813.1,1.4422]
[1743350438452,1.1033,1813.3,1813.1,3.92516]
[1743350438453,2.8953,1813.2,1813.1,3.92516]
[1743350440564,2.8953,1813.2,1813.1,3.22576]
[1743350440764,2.8953,1813.2,1813.1,2.48296]
[1743350441065,3.99864,1813.2,1813.0,4.31122]
[1743350441363,1.4386,1813.1,1813.0,1.10345]
[1743350441864,2.54199,1813.1,1813.0,1.10345]
[1743350442158,1.4386,1813.1,1813.0,1.10345]
[1743350442658,2.54199,1813.1,1812.9,2.48098]
[1743350442862,3.63,1813.0,1812.9,2.48098]
[1743350443165,5.1378,1813.0,1812.9,1.10348]
[1743350449169,6.24125,1813.0,1812.8,1.4551]
[1743350449464,1.3999,1812.9,1812.8,2.55867]
[1743350449871,2.1588,1812.9,1812.8,2.55867]
[1743350450063,1.3999,1812.9,1812.8,2.55867]
[1743350451174,1.3999,1812.9,1812.8,3.25667]
[1743350453473,1.3999,1812.9,1812.8,1.4551]
[1743350453474,2.50341,1812.9,1812.8,1.4551]
[1743350453669,3.24701,1812.9,1812.8,1.4551]
[1743350453875,1.10357,1812.8,1812.7,1.79659]
[1743350454172,3.36307,1812.8,1812.7,3.18549]
[1743350454574,2.2595,1812.8,1812.7,3.18549]
[1743350455072,2.2595,1812.8,1812.7,2.49249]
[1743350456375,3.36307,1812.8,1812.7,1.3889]
[1743350456574,3.36307,1812.8,1812.7,2.49253]
[1743350456776,3.36307,1812.8,1812.7,1.3889]
[1743350457069,2.2595,1812.8,1812.7,2.49253]
[1743350457270,3.36307,1812.8,1812.7,2.49253]
[1743350458678,1.5076,1812.8,1812.7,2.49253]
[1743350458878,3.63,1812.9,1812.8,1.10357]
[1743350459076,1.10377,1812.5,1812.3,1.10385]
[1743350459270,1.10387,1812.3,1812.2,1.4291]
[1743350459471,4.07324,1812.4,1812.2,2.53301]
[1743350459876,5.82997,1812.3,1812.2,1.4291]
[1743350460480,1.10393,1812.2,1812.1,0.00826264]
[1743350460677,6.25223,1812.2,1812.1,0.00826264]
[1743350463378,6.8388,1812.3,1812.2,1.10393]
[1743350463573,6.8388,1812.3,1812.2,2.56353]
[1743350463770,8.3205,1812.3,1812.2,2.56353]
[1743350464785,3.2078,1812.3,1812.2,2.56353]
[1743350464979,0.00826264,1812.4,1812.3,1.10387]
[1743350465282,0.00826264,1812.4,1812.3,2.50797]
[1743350466876,0.00826264,1812.4,1812.3,5.71577]
[1743350467076,3.631,1812.8,1812.6,1.10365]
[1743350467278,3.631,1812.8,1812.7,1.4992]
[1743350467479,22.63293153,1813.0,1812.7,1.4992]
[1743350467781,23.01324153,1813.0,1812.7,3.3553]
[1743350467980,27.74772153,1813.0,1812.7,3.3553]
[1743350468186,21.53770417,1813.0,1812.8,2.60274]
[1743350468386,21.53770417,1813.0,1812.9,1.4992]
[1743350469677,21.53770417,1813.0,1812.9,2.60271]
[1743350472287,21.53770417,1813.0,1812.9,1.4992]
[1743350472489,22.99050417,1813.0,1812.9,1.4992]
[1743350472688,22.99050417,1813.0,1812.9,2.60271]
[1743350479094,21.53770417,1813.0,1812.9,2.60271]
[1743350480591,0.00826264,1813.0,1812.9,2.60271]
[1743350480899,0.00826264,1813.0,1812.9,5.81051]
[1743350481198,0.00826264,1813.0,1812.9,12.88969611]
[1743350481496,0.00826264,1813.0,1812.9,16.51969611]
[1743350483196,21.52944153,1813.4,1813.3,1.10327]
[1743350483490,26.17994153,1813.4,1813.3,1.10327]
[1743350483696,4.6505,1813.4,1813.3,1.10327]
[1743350484200,0.7229,1813.5,1813.4,1.1032]
[1743350484201,0.73116264,1813.5,1813.4,1.1032]
[1743350484408,2.17386264,1813.5,1813.4,1.1032]
[1743350486212,3.27701264,1813.5,1813.3,2.59713]
[1743350486509,1.4334,1813.4,1813.3,2.59713]
[1743350489205,0.00826264,1813.5,1813.4,1.1032]
[1743350489806,1.50476264,1813.5,1813.4,1.1032]
[1743350492012,1.50476264,1813.5,1813.3,2.59715]
[1743350492219,2.60794264,1813.5,1813.3,2.59715]
[1743350492406,2.60790264,1813.5,1813.3,2.59712]
[1743350492609,1.425,1813.4,1813.3,2.59712]
[1743350493305,1.43326264,1813.5,1813.4,1.1032]
[1743350493717,0.00826264,1813.5,1813.4,1.1032]
[1743350493908,0.00826264,1813.5,1813.4,2.5954]
[1743350495514,0.00826264,1813.5,1813.4,30.1954]
[1743350495710,3.628,1814.0,1813.5,2.75787]
[1743350495905,1.4977,1813.9,1813.8,1.10296]
[1743350497615,1.56522663,1813.9,1813.8,1.10296]
[1743350497814,1.56522663,1813.9,1813.7,1.3984]
[1743350498021,1.10313,1813.6,1813.4,4.31098]
[1743350498216,2.9549,1813.5,1813.3,1.4261]
[1743350498414,1.10327,1813.3,1813.2,0.00826264]
[1743350498819,2.57247,1813.3,1813.2,0.00826264]
[1743350499313,2.6472755,1813.3,1813.2,0.00826264]
[1743350501118,4.0440055,1813.3,1812.7,3.2078]
[1743350501314,0.0748055,1813.0,1812.9,1.10349]
[1743350501519,5.9097055,1813.0,1812.9,1.10349]
[1743350502423,5.9097055,1813.0,1812.9,2.49479]
[1743350502625,5.9097055,1813.0,1812.9,1.3913]
[1743350504522,6.5959055,1813.0,1812.9,1.3913]
[1743350504720,7.6993555,1813.0,1812.9,1.3913]
[1743350506321,6.5959055,1813.0,1812.8,0.00826264]
[1743350506524,2.49881,1812.9,1812.8,0.00826264]
[1743350507629,2.5736155,1812.9,1812.8,0.00826264]
[1743350508720,1.4701055,1812.9,1812.8,1.11183264]
[1743350509220,2.5736155,1812.9,1812.8,0.00826264]
[1743350513325,6.2016155,1812.9,1812.8,0.00826264]
[1743350513622,6.2016155,1812.9,1812.8,1.46056264]
[1743350520635,6.2016155,1812.9,1812.8,0.00826264]
[1743350521824,0.0748055,1812.9,1812.8,1.11183264]
[1743350522028,1.1783155,1812.9,1812.8,3.96446264]
[1743350522229,1.1783155,1812.9,1812.8,2.20186264]
[1743350522441,1.1783155,1812.9,1812.8,3.30543264]
[1743350522733,1.1783155,1812.9,1812.8,2.20186264]
[1743350523235,0.0748055,1812.9,1812.8,3.30543264]
[1743350523436,0.00826264,1813.1,1813.0,1.10345]
[1743350523837,3.2078,1813.4,1813.3,1.10327]
[1743350524634,21.52944153,1813.7,1813.6,1.10308]
[1743350525641,21.52944153,1813.7,1813.6,2.49428]
[1743350526234,1.11122264,1813.8,1813.6,1.3912]
[1743350526442,2.60892264,1813.8,1813.6,1.3912]
[1743350526641,5.81677264,1813.8,1813.6,1.3912]
[1743350527137,1.10302,1813.7,1813.6,1.3912]
[1743350527336,3.34452,1813.7,1813.6,1.3912]
[1743350527634,0.00826264,1813.8,1813.7,1.10302]
[1743350528037,1.11123264,1813.8,1813.6,2.49424]
[1743350528236,1.11123264,1813.8,1813.5,1.4736]
[1743350528237,5.70863264,1813.8,1813.7,1.4549]
[1743350529942,1.39786264,1813.8,1813.7,2.55792]
[1743350530139,0.00826264,1813.8,1813.7,2.55792]
[1743350530942,1.11122264,1813.8,1813.7,1.4549]
[1743350531141,5.78202264,1813.8,1813.7,1.4549]
[1743350531441,1.10306,1813.7,1813.5,2.5767]
[1743350531639,2.1695,1813.7,1813.6,2.59798]
[1743350532143,3.27252,1813.7,1813.6,1.4949]
[1743350532439,3.27252,1813.7,1813.5,1.1031]
[1743350532640,2.2016,1813.6,1813.5,1.1031]
[1743350533342,1.463,1813.6,1813.5,1.1031]
[1743350533546,0.00826264,1813.8,1813.6,1.10303]
[1743350533735,1.11122264,1813.8,1813.7,2.2528]
[1743350534040,2.57422264,1813.8,1813.7,2.2528]
[1743350535234,0.00826264,1813.8,1813.7,3.35582]
[1743350536436,1.11122264,1813.8,1813.7,1.4949]
[1743350537545,9.59947264,1813.8,1813.3,1.10323]
[1743350537739,3.0063,1813.7,1813.5,1.10314]
[1743350538043,1.511,1813.6,1813.5,1.10314]
[1743350539044,0.737,1813.7,1813.6,1.10308]
[1743350539235,3.63426264,1813.8,1813.7,1.10302]
[1743350539442,3.63426264,1813.8,1813.3,16.86222152]
[1743350539639,1.511,1813.7,1813.6,1.10304]
[1743350541842,1.57846832,1813.7,1813.6,1.10304]
[1743350542048,0.06746832,1813.7,1813.6,1.10304]
[1743350543248,0.00826264,1813.8,1813.7,1.0282145]
[1743350543555,0.00826264,1813.8,1813.7,1.7680145]
[1743350547358,0.00826264,1813.8,1813.7,2.21142116]
[1743350547550,0.00826264,1813.8,1813.7,1.7680145]
[1743350548553,0.00826264,1813.8,1813.7,2.19870462]
[1743350548862,0.00826264,1813.8,1813.7,1.7680145]
[1743350552452,0.71566264,1813.8,1813.5,3.2078]
[1743350552652,0.71566264,1813.8,1813.2,5.74788]
[1743350552653,1.10323,1813.4,1813.2,5.74788]
[1743350552865,2.1595,1813.3,1813.2,4.31108]
[1743350553058,2.8669,1813.3,1813.2,4.31108]
[1743350553657,2.8669,1813.3,1813.2,1.10328]
[1743350555160,1.4742,1813.3,1813.2,1.10328]
[1743350556161,1.4742,1813.3,1813.1,1.4188]
[1743350556354,1.1035,1813.0,1812.8,0.00826264]
[1743350556561,2.9683,1812.9,1812.8,0.00826264]
[1743350557359,4.07181,1812.9,1812.8,0.00826264]
[1743350557664,2.9683,1812.9,1812.3,3.2078]
[1743350557855,2.9683,1812.9,1812.4,2.52259]
[1743350557856,1.10366,1812.7,1812.4,2.52259]
[1743350558161,1.5059,1812.6,1812.4,2.52259]
[1743350558367,1.5059,1812.6,1812.5,1.4166]
[1743350558568,1.5059,1812.6,1812.5,2.52035]
[1743350560167,3.63426264,1812.7,1812.6,1.10369]
[1743350560364,5.00756264,1812.7,1812.6,2.52029]
[1743350560755,1.38156264,1812.7,1812.6,2.52029]
[1743350562063,0.00826264,1812.7,1812.6,2.52029]
[1743350562459,0.00826264,1812.7,1812.6,3.21209]
[1743350562665,3.2078,1812.8,1812.7,1.10363]
[1743350562862,3.2078,1812.8,1812.7,2.48613]
[1743350563171,2.1674,1812.9,1812.8,1.10357]
[1743350563359,2.1674,1812.9,1812.8,2.48607]
[1743350565262,2.1674,1812.9,1812.7,1.1036]
[1743350565463,1.3858,1812.8,1812.7,2.5307]
[1743350568565,1.3858,1812.8,1812.4,4.36846264]
[1743350568566,5.2803,1812.8,1812.4,4.36846264]
[1743350568772,6.38389,1812.8,1812.6,1.10369]
[1743350568968,1.4429,1812.7,1812.6,1.10369]
[1743350569466,1.4429,1812.7,1812.5,2.51679]
[1743350569772,1.4429,1812.7,1812.6,1.10369]
[1743350572177,2.54653,1812.7,1812.5,2.51681]
[1743350572475,1.4429,1812.7,1812.6,1.10369]
[1743350572675,1.4429,1812.7,1812.6,2.50329]
[1743350577079,1.5177055,1812.7,1812.6,2.50329]
[1743350577372,2.6213355,1812.7,1812.6,1.3996]
[1743350577577,1.5177055,1812.7,1812.4,2.39725264]
[1743350577879,1.10375,1812.5,1812.4,0.00826264]
[1743350578076,1.5128055,1812.6,1812.4,1.11206264]
[1743350578077,2.6165355,1812.6,1812.4,1.11206264]
[1743350578270,1.4561,1812.5,1812.4,2.48596264]
[1743350578471,2.8941,1812.5,1812.4,2.48596264]
[1743350579078,2.9689055,1812.5,1812.4,2.48596264]
[1743350580075,0.0748055,1812.5,1812.4,2.48596264]
[1743350580877,0.0748055,1812.5,1812.4,5.69376264]
[1743350586473,3.2078,1812.9,1812.8,1.10357]
[1743350586673,21.52944153,1813.2,1813.1,1.10339]
[1743350586970,18.75515153,1813.2,1813.1,1.10339]
[1743350587675,1.4442,1813.3,1813.2,1.10333]
[1743350587980,1.44970844,1813.3,1813.1,1.10336]
[1743350588174,0.7029,1813.2,1813.1,2.53996]
[1743350588480,1.44970844,1813.3,1813.2,1.10333]
[1743350588679,1.44970844,1813.3,1813.2,2.55383]
[1743350589589,1.44970844,1813.3,1813.1,1.10335]
[1743350589882,1.44970844,1813.3,1813.0,3.2078]
[1743350589883,1.44970844,1813.3,1813.2,1.10333]
[1743350592384,1.44970844,1813.3,1813.1,1.4505]
[1743350592680,1.44970844,1813.3,1812.8,3.9119]
[1743350592681,1.10335,1813.2,1812.8,3.9119]
[1743350592878,1.5113,1813.1,1813.0,1.10343]
[1743350593079,2.2214,1813.1,1813.0,1.10343]
[1743350593375,2.2214,1813.1,1812.9,1.4614]
[1743350593580,2.2062,1813.0,1812.9,1.4614]
[1743350593781,2.2062,1813.0,1812.9,2.56487]
[1743350597590,2.2062,1813.0,1812.8,4.31133]
[1743350597788,1.4629,1812.9,1812.8,4.31133]
[1743350597990,2.56641,1812.9,1812.7,3.34259]
[1743350598288,2.56641,1812.9,1812.7,1.4946]
[1743350598586,1.4629,1812.8,1812.7,2.59823]
[1743350603191,0.7101,1813.1,1812.8,2.75889]
[1743350603494,0.7101,1813.1,1813.0,1.10345]
[1743350603987,0.00550844,1813.3,1813.2,1.10333]
[1743350604195,0.00550844,1813.3,1813.2,4.31113]
[1743350604386,0.00550844,1813.3,1813.2,11.37171043]
[1743350604890,0.00550844,1813.3,1813.2,12.05591043]
[1743350607492,0.00550844,1813.3,1813.2,4.31113]
[1743350607694,2.21310844,1813.3,1813.2,4.31113]
[1743350608291,2.21310844,1813.3,1813.2,3.2078]
[1743350608491,5.42090844,1813.3,1813.1,1.10335]
[1743350608695,1.48,1813.2,1813.1,1.10335]
[1743350609490,1.48,1813.2,1813.0,2.49021]
[1743350609696,0.7208,1813.1,1813.0,1.10341]
[1743350609997,0.7208,1813.1,1813.0,2.57631]
[1743350612597,2.1493,1813.1,1813.0,2.57631]
[1743350612991,2.1493,1813.1,1813.0,1.10341]
[1743350614795,1.4285,1813.1,1813.0,2.57581]
[1743350615403,2.1248,1813.1,1813.0,2.57581]
[1743350616997,0.73310844,1813.3,1813.2,1.10333]
[1743350617595,0.73310844,1813.3,1813.2,2.48793]
[1743350617792,2.25290844,1813.3,1813.2,2.48793]
[1743350619000,0.00550844,1813.3,1813.2,2.48793]
[1743350620305,1.46070844,1813.3,1813.2,2.48793]
[1743350620804,4.66850844,1813.3,1813.1,1.81386]
[1743350621102,0.6973,1813.2,1813.0,1.5028]
[1743350621301,2.1525,1813.2,1813.1,1.10339]
[1743350622602,3.25585,1813.2,1813.0,1.5028]
[1743350622902,1.3745,1813.1,1813.0,2.60625]
[1743350623303,1.3745,1813.1,1813.0,1.5028]
[1743350623508,1.3745,1813.1,1813.0,2.60625]
[1743350630100,4.5823,1813.1,1812.7,3.2078]
[1743350630405,1.10359,1812.8,1812.6,1.10367]
[1743350630599,0.7467,1812.7,1812.6,1.10367]
[1743350630794,2.127,1812.7,1812.6,2.62327]
[1743350633395,1.10375,1812.5,1812.4,0.00826264]
[1743350633601,6.8328,1812.5,1812.2,1.5151]
[1743350633797,2.49236,1812.4,1812.2,1.5151]
[1743350634004,2.1468,1812.3,1812.2,1.5151]
[1743350634307,3.25067,1812.3,1812.2,1.5151]
[1743350634506,2.1468,1812.3,1812.2,1.5151]
[1743350635207,1.10393,1812.2,1812.1,0.00826264]
[1743350635407,6.20033,1812.2,1812.1,0.00826264]
[1743350637211,1.10406,1812.0,1811.9,1.4522]
[1743350637906,1.86356,1812.0,1811.9,1.4522]
[1743350638105,0.00826264,1812.3,1811.9,11.26063479]
[1743350638303,0.7595,1812.7,1812.2,2.75984]
[1743350638497,3.625,1812.8,1812.4,3.2078]
[1743350638498,4.72859,1812.8,1812.4,3.2078]
[1743350638702,4.72859,1812.8,1812.5,3.94583]
[1743350638903,4.72859,1812.8,1812.6,1.4299]
[1743350639109,3.625,1812.8,1812.6,1.4299]
[1743350639410,4.72858,1812.8,1812.6,1.4299]
[1743350639611,4.72857,1812.8,1812.6,1.4299]
[1743350639909,4.72857,1812.8,1812.6,2.53359]
[1743350640104,0.00826264,1812.9,1812.6,2.53359]
[1743350640105,1.11179264,1812.9,1812.6,2.53359]
[1743350640308,3.626,1812.8,1812.7,2.53352]
[1743350641211,3.626,1812.8,1812.7,1.4299]
[1743350641715,3.626,1812.8,1812.7,2.53353]
[1743350642513,0.00826264,1812.9,1812.7,2.53353]
[1743350642711,3.63426264,1812.9,1812.8,1.4055]
[1743350642912,0.00826264,1812.9,1812.8,1.4055]
[1743350643113,3.63426264,1812.9,1812.8,1.4055]
[1743350643310,4.73777264,1812.9,1812.8,1.4055]
[1743350643510,6.12097264,1812.9,1812.8,1.4055]
[1743350645916,6.12097264,1812.9,1812.5,1.4122]
[1743350645917,1.10359,1812.8,1812.6,1.10365]
[1743350646114,2.48679,1812.8,1812.6,2.50625]
[1743350646613,1.10359,1812.8,1812.6,1.10365]
[1743350646813,1.10363,1812.7,1812.6,1.434]
[1743350647212,1.10363,1812.7,1812.5,1.10374]
[1743350647409,1.10363,1812.7,1812.6,1.434]
[1743350647612,4.72963,1812.7,1812.6,1.434]
[1743350648908,5.41883,1812.7,1812.6,1.434]
[1743350649106,1.10381,1812.4,1812.3,1.436]
[1743350649311,1.10379,1812.5,1812.3,2.53987]
[1743350650419,1.10379,1812.5,1812.4,1.4773]
[1743350652817,0.6892,1812.7,1812.6,1.10369]
[1743350653120,4.31141,1812.8,1812.5,3.2078]
[1743350653316,3.626,1812.7,1812.6,2.2185]
[1743350653623,3.626,1812.7,1812.6,1.81825]
[1743350653914,3.2078,1812.8,1812.7,1.10363]
[1743350654120,1.10357,1812.8,1812.7,1.82123]
[1743350657416,1.10357,1812.8,1812.7,0.7176]
[1743350657919,1.10378,1812.5,1812.3,3.2078]
[1743350658225,1.10378,1812.5,1812.4,1.83471]
[1743350658521,0.6977,1812.7,1812.4,1.83471]
[1743350658722,1.10375,1812.5,1812.4,1.83471]
[1743350659724,1.10374,1812.6,1812.4,1.83471]
[1743350660122,1.80137,1812.7,1812.5,1.10375]
[1743350661124,1.80137,1812.7,1812.4,0.7309]
[1743350661125,1.10375,1812.5,1812.4,0.7309]
[1743350661427,1.10375,1812.5,1812.4,1.83471]
[1743350661820,1.10375,1812.5,1812.4,0.7309]
[1743350662023,1.10375,1812.5,1812.4,1.83471]
[1743350662919,1.10375,1812.5,1812.4,0.7309]
[1743350663325,3.625,1812.6,1812.4,1.83469]
[1743350663628,4.72873,1812.6,1812.4,1.83467]
[1743350664320,0.6977,1812.7,1812.4,0.7309]
[1743350664519,3.625,1812.8,1812.5,3.2078]
[1743350664722,4.72859,1812.8,1812.6,1.79545]
[1743350665220,4.72859,1812.8,1812.7,1.10363]
[1743350665420,4.72859,1812.8,1812.7,2.55583]
[1743350666223,4.72859,1812.8,1812.7,1.4522]
[1743350666423,4.72859,1812.8,1812.7,2.55583]
[1743350666823,4.72859,1812.8,1812.7,1.4522]
[1743350667524,7.93639,1812.8,1812.7,1.4522]
[1743350668531,3.625,1812.8,1812.7,2.55583]
[1743350669431,4.72857,1812.8,1812.7,2.55583]
[1743350670435,4.72857,1812.8,1812.7,1.4522]
[1743350670829,7.93637,1812.8,1812.7,1.4522]
[1743350671335,3.625,1812.8,1812.7,2.55583]
[1743350672135,4.72857,1812.8,1812.7,2.55583]
[1743350673740,4.72857,1812.8,1812.7,1.4522]
[1743350674337,4.72857,1812.8,1812.7,2.55583]
[1743350674740,4.72857,1812.8,1812.7,1.4522]
[1743350675037,7.93637,1812.8,1812.7,1.4522]
[1743350678636,21.43338198,1812.8,1812.7,1.4522]
[1743350678836,21.43338198,1812.8,1812.7,2.55583]
[1743350679440,22.53695198,1812.8,1812.7,1.4522]
[1743350679740,21.43338198,1812.8,1812.7,1.4522]
[1743350679944,22.53695198,1812.8,1812.7,1.4522]
[1743350680642,21.43338198,1812.8,1812.7,2.55583]
[1743350688149,22.53695198,1812.8,1812.7,1.4522]
[1743350688454,24.01985198,1812.8,1812.7,1.4522]
[1743350689051,21.43338198,1812.8,1812.7,2.55583]
[1743350690656,21.44164462,1812.9,1812.8,1.10357]
[1743350690863,21.44164462,1812.9,1812.8,1.83457]
[1743350692167,21.44164462,1812.9,1812.8,3.31677]
[1743350693063,18.29212484,1812.9,1812.8,12.84895633]
[1743350693264,18.29212484,1812.9,1812.8,16.47295633]
[1743350693860,18.29212484,1812.9,1812.8,16.9216266]
[1743350694262,2.60463,1813.4,1813.2,1.10328]
[1743350694465,1.5014,1813.4,1813.3,1.4545]
[1743350694669,2.2592,1813.4,1813.3,1.4545]
[1743350694969,2.2592,1813.4,1813.3,2.55777]
[1743350696361,1.5014,1813.4,1813.3,2.55777]
[1743350696769,5.07560844,1813.5,1813.3,2.55777]
[1743350696972,6.52850844,1813.5,1813.4,1.463]
[1743350697167,7.63164844,1813.5,1813.4,1.463]
[1743350698267,7.63164844,1813.5,1813.4,2.5662]
[1743350698467,7.63164844,1813.5,1813.4,1.463]
[1743350698662,6.52850844,1813.5,1813.2,1.4788]
[1743350698968,0.00550844,1813.5,1813.4,11.39225218]
[1743350699167,0.00550844,1813.5,1813.4,6.4854]
[1743350699374,0.00550844,1813.5,1813.4,16.04654322]
[1743350700370,0.05091652,1813.5,1813.4,17.17054322]
[1743350700570,0.05091652,1813.5,1813.4,10.1094]
[1743350700772,0.05091652,1813.5,1813.4,6.4854]
[1743350701369,0.08031394,1813.5,1813.4,6.4854]
[1743350701666,0.08031394,1813.5,1813.4,13.59295194]
[1743350702070,0.08031394,1813.5,1813.4,16.09295194]
[1743350702869,8.2596,1814.1,1814.0,1.10284]
[1743350703474,8.2596,1814.1,1813.9,1.10285]
[1743350703675,4.6366,1814.1,1814.0,2.54924]
[1743350705069,5.73938,1814.1,1814.0,1.4464]
[1743350705380,26.89018568,1814.6,1814.0,3.2078]
[1743350705671,5.0825,1814.5,1814.4,1.1026]
[1743350706273,1.4575,1814.5,1814.4,1.1026]
[1743350706473,23.68238568,1814.6,1814.5,1.10254]
[1743350706971,3.9076,1814.6,1814.4,1.10256]
[1743350707173,3.9076,1814.6,1814.5,1.10254]
[1743350707873,0.6998,1814.6,1814.5,1.10254]
[1743350708177,0.6998,1814.6,1814.4,1.10255]
[1743350708385,0.6998,1814.6,1814.5,2.61704]
[1743350709778,0.7084,1815.1,1814.9,1.10227]
[1743350709971,0.7084,1815.1,1814.5,4.27079]
[1743350709972,0.7084,1815.1,1814.6,8.91204]
[1743350710179,0.7084,1815.1,1815.0,1.10223]
[1743350710874,0.7084,1815.1,1814.9,2.56125]
[1743350711079,0.7084,1815.1,1815.0,1.10223]
[1743350711282,0.7084,1815.1,1815.0,2.56123]
[1743350712480,1.81057,1815.1,1815.0,1.459]
[1743350712982,0.7084,1815.1,1815.0,1.459]
[1743350713278,0.7084,1815.1,1815.0,2.56123]
[1743350715473,2.2121,1815.1,1815.0,2.56123]
[1743350716078,3.31427,1815.1,1815.0,1.459]
[1743350716384,1.10226,1815.0,1814.8,1.11058264]
[1743350716579,0.7087,1814.9,1814.8,1.11058264]
[1743350716979,2.1453,1814.9,1814.8,1.11058264]
[1743350717284,1.10175,1815.8,1815.6,1.10185]
[1743350717484,1.4366,1815.7,1815.6,1.10185]
[1743350720679,1.4366,1815.7,1815.6,2.51275]
[1743350721485,1.45066859,1815.7,1815.6,2.51275]
[1743350725285,23.68238568,1816.0,1815.8,1.10175]
[1743350725584,1.10123,1816.7,1816.4,1.10136]
[1743350725791,6.45282,1816.9,1816.5,1.5179]
[1743350725977,3.2078,1816.7,1816.3,3.2078]
[1743350726285,4.5005,1816.6,1816.3,2.60559]
[1743350726491,4.5005,1816.6,1816.5,1.10132]
[1743350726690,9.5005,1816.6,1816.4,2.60554]
[1743350727085,9.5005,1816.6,1816.5,1.10132]
[1743350727495,9.5005,1816.6,1816.1,3.2078]
[1743350727785,9.5005,1816.6,1816.3,1.10142]